bitfinex/quotes_BTCUSD_20230110
["timestamp","ask_amount","ask_price","bid_price","bid_amount"]
[1673382141101,0.5,17480.0,17479.0,0.00149861]
[1673382141351,1.644164,17480.0,17479.0,0.00149861]
[1673382141712,2.52854815,17480.0,17479.0,6.1e-07]
[1673382141893,1.81194347,17480.0,17479.0,6.1e-07]
[1673382142432,1.760564,17480.0,17479.0,0.01100061]
[1673382142681,1.652164,17480.0,17479.0,0.01100061]
[1673382143212,1.152164,17480.0,17479.0,0.24990523]
[1673382143471,1.152164,17480.0,17479.0,0.01222734]
[1673382143728,1.152164,17480.0,17479.0,0.01100061]
[1673382143982,1.152164,17480.0,17479.0,1.06425112]
[1673382144255,1.152164,17480.0,17479.0,0.82657323]
[1673382144256,0.580082,17480.0,17479.0,0.82657323]
[1673382144517,0.580082,17480.0,17479.0,1.18496123]
[1673382144793,0.580082,17480.0,17479.0,0.67422323]
[1673382145600,0.880082,17480.0,17479.0,0.67422323]
[1673382145867,0.880082,17480.0,17479.0,0.78362323]
[1673382146156,0.880082,17480.0,17479.0,0.01100061]
[1673382146925,1.452164,17480.0,17479.0,0.01100061]
[1673382147431,1.82275589,17480.0,17479.0,0.01100061]
[1673382147684,1.62275589,17480.0,17479.0,0.01100061]
[1673382148457,1.82275589,17480.0,17479.0,0.01100061]
[1673382149249,2.07840015,17480.0,17479.0,0.01100061]
[1673382149800,2.24882721,17480.0,17479.0,0.01100061]
[1673382150340,2.07898202,17480.0,17479.0,0.01100061]
[1673382150599,2.07898141,17480.0,17479.0,0.01100061]
[1673382151139,2.24882721,17480.0,17479.0,0.01100061]
[1673382151405,2.07896325,17480.0,17479.0,0.01100061]
[1673382151650,2.64799405,17480.0,17479.0,0.01100061]
[1673382152688,2.81988896,17480.0,17479.0,0.01100061]
[1673382152944,2.39234979,17480.0,17479.0,0.01100061]
[1673382153189,2.42072212,17480.0,17479.0,0.01100061]
[1673382153448,2.42202374,17480.0,17479.0,0.01100061]
[1673382153974,2.07970317,17480.0,17479.0,0.01100061]
[1673382154453,2.42202683,17480.0,17479.0,0.01100061]
[1673382154746,2.77864421,17480.0,17479.0,0.01100061]
[1673382154964,2.07970317,17480.0,17479.0,0.01100061]
[1673382155240,2.42207512,17480.0,17479.0,0.01100061]
[1673382155485,1.3233221,17480.0,17479.0,0.62931792]
[1673382156510,1.152164,17480.0,17479.0,0.62931792]
[1673382156766,0.580082,17480.0,17479.0,0.62931792]
[1673382160180,0.580082,17480.0,17479.0,0.63781792]
[1673382161947,1.152164,17480.0,17479.0,0.63781792]
[1673382162989,0.008,17480.0,17479.0,0.17185061]
[1673382163239,0.008,17480.0,17479.0,0.74773861]
[1673382164031,0.008,17480.0,17479.0,1.66002405]
[1673382164530,0.008,17480.0,17479.0,0.94773861]
[1673382164776,1.316945,17483.0,17480.0,0.2]
[1673382165083,1.316945,17483.0,17482.0,0.1086]
[1673382165305,1.4881031,17483.0,17482.0,0.1086]
[1673382165609,0.744936,17483.0,17482.0,0.75447733]
[1673382166087,0.184928,17483.0,17482.0,0.75447733]
[1673382166365,0.172928,17483.0,17482.0,0.75447733]
[1673382166619,0.184928,17483.0,17482.0,0.81847733]
[1673382166884,0.184928,17483.0,17482.0,0.92787733]
[1673382167138,0.184928,17483.0,17482.0,0.648888]
[1673382167388,0.184928,17483.0,17482.0,1.35223567]
[1673382167691,0.184928,17483.0,17482.0,1.94119958]
[1673382168199,0.184928,17483.0,17482.0,1.83259958]
[1673382168460,0.184928,17483.0,17482.0,1.83266395]
[1673382168972,0.184928,17483.0,17482.0,1.44370004]
[1673382169512,0.184928,17483.0,17482.0,2.13649387]
[1673382171021,0.184928,17483.0,17482.0,1.34248183]
[1673382171279,0.184928,17483.0,17482.0,1.3436472]
[1673382172073,0.756912,17483.0,17482.0,0.98409383]
[1673382172327,0.756912,17483.0,17482.0,0.9852592]
[1673382172583,1.328896,17483.0,17482.0,0.76529383]
[1673382173421,0.756912,17483.0,17482.0,0.7654744]
[1673382174738,0.776912,17483.0,17482.0,0.76529383]
[1673382176509,0.194928,17483.0,17482.0,0.76529383]
[1673382179823,0.766912,17483.0,17482.0,0.76529383]
[1673382183792,0.766912,17483.0,17482.0,0.7654744]
[1673382184801,0.194928,17483.0,17482.0,0.7654744]
[1673382185541,0.194928,17483.0,17482.0,0.76283046]
[1673382186048,0.194928,17483.0,17482.0,0.76264989]
[1673382187547,0.194928,17483.0,17482.0,0.76283046]
[1673382188068,0.194928,17483.0,17482.0,0.87223046]
[1673382188844,0.194928,17483.0,17482.0,1.23061846]
[1673382189357,0.194928,17483.0,17482.0,1.33941846]
[1673382190099,0.194928,17483.0,17482.0,1.2405723]
[1673382190601,0.194928,17483.0,17482.0,2.9872043]
[1673382190874,0.03599418,17485.0,17484.0,0.2]
[1673382191137,0.03599418,17485.0,17484.0,1.48903567]
[1673382191624,0.03599418,17485.0,17484.0,2.09649219]
[1673382191901,0.03599418,17485.0,17484.0,1.48903567]
[1673382192400,0.03599418,17485.0,17484.0,2.06098667]
[1673382192634,0.03599418,17485.0,17484.0,1.48903567]
[1673382193433,0.03599418,17485.0,17484.0,2.19998667]
[1673382193682,0.03599418,17485.0,17484.0,2.77193767]
[1673382194172,0.03599418,17485.0,17484.0,2.19998667]
[1673382194666,0.01689435,17486.0,17485.0,0.2]
[1673382194913,0.01689435,17486.0,17485.0,1.37793567]
[1673382195410,0.01689435,17486.0,17485.0,1.94985367]
[1673382195677,0.01689435,17486.0,17485.0,2.52074804]
[1673382195935,0.01689435,17486.0,17485.0,2.66074804]
[1673382196268,0.01689435,17486.0,17485.0,2.52074804]
[1673382196752,0.01689435,17486.0,17485.0,2.78137915]
[1673382197547,0.01689435,17486.0,17485.0,3.23215361]
[1673382198848,0.01689435,17486.0,17485.0,5.17998442]
[1673382199092,0.01689435,17486.0,17485.0,5.04241507]
[1673382199397,0.58936292,17492.0,17486.0,0.2]
[1673382199687,0.58936292,17492.0,17489.0,0.1094]
[1673382199930,0.58936292,17492.0,17490.0,0.59613023]
[1673382200207,0.78936292,17492.0,17490.0,0.23774223]
[1673382200459,0.78936292,17492.0,17490.0,0.34714223]
[1673382200460,0.01764492,17492.0,17490.0,0.34714223]
[1673382200984,0.01764492,17492.0,17491.0,0.519238]
[1673382201233,1.72270428,17497.0,17491.0,0.737338]
[1673382201234,0.42790428,17497.0,17491.0,0.737338]
[1673382201507,1.10809639,17500.0,17492.0,1.50261935]
[1673382201508,0.025,17500.0,17492.0,1.50261935]
[1673382201750,0.05460733,17500.0,17494.0,0.16972887]
[1673382202016,0.025,17500.0,17497.0,1.35497313]
[1673382202313,0.025,17500.0,17498.0,1.19001356]
[1673382202544,0.025,17500.0,17499.0,0.95233567]
[1673382202800,0.025,17500.0,17499.0,0.96083567]
[1673382203053,0.025,17500.0,17496.0,0.52785902]
[1673382203324,0.16870794,17499.0,17498.0,0.106]
[1673382203619,0.025,17500.0,17498.0,0.2]
[1673382203878,0.06271784,17500.0,17498.0,0.2]
[1673382204156,0.025,17500.0,17497.0,0.0085]
[1673382204408,0.26107629,17500.0,17496.0,0.2085]
[1673382204659,0.19870036,17499.0,17496.0,0.80226946]
[1673382204926,0.74019094,17499.0,17496.0,0.2]
[1673382205181,0.705447,17500.0,17498.0,0.52539932]
[1673382205425,0.2,17499.0,17498.0,0.52539932]
[1673382205676,0.025,17500.0,17498.0,0.034]
[1673382205934,0.025,17500.0,17499.0,0.358388]
[1673382206234,0.025,17500.0,17499.0,0.566888]
[1673382206439,0.025,17500.0,17499.0,0.2]
[1673382206695,0.02837531,17499.0,17496.0,0.71872502]
[1673382206945,0.76856025,17499.0,17496.0,0.71872502]
[1673382207200,0.16870794,17498.0,17496.0,0.71872502]
[1673382207486,0.16870794,17497.0,17495.0,0.20015]
[1673382207695,0.5,17497.0,17495.0,0.5159185]
[1673382207966,0.571515,17498.0,17495.0,0.5159185]
[1673382208193,0.771515,17498.0,17495.0,0.5159185]
[1673382208443,0.3,17497.0,17496.0,0.034]
[1673382208693,0.3,17497.0,17495.0,0.00015]
[1673382208694,0.2,17496.0,17495.0,0.00015]
[1673382208958,0.3,17497.0,17494.0,0.64537082]
[1673382208959,0.871557,17497.0,17494.0,0.64537082]
[1673382209206,1.24026494,17497.0,17494.0,0.64537082]
[1673382209471,1.24026494,17497.0,17493.0,0.2]
[1673382209726,0.03482468,17496.0,17493.0,0.91450453]
[1673382209991,0.03482468,17496.0,17492.0,0.90652014]
[1673382209992,0.1092,17496.0,17495.0,0.034]
[1673382210227,1.143182,17495.0,17492.0,0.05293476]
[1673382210485,1.443248,17494.0,17492.0,0.05293476]
[1673382210732,1.61195594,17494.0,17492.0,0.05293476]
[1673382211004,0.1088,17493.0,17492.0,0.05293476]
[1673382211786,0.1088,17493.0,17492.0,0.15893476]
[1673382211787,0.3088,17493.0,17492.0,0.15893476]
[1673382212021,0.6088,17493.0,17492.0,0.15893476]
[1673382212268,0.64819195,17493.0,17492.0,0.05293476]
[1673382213013,0.65219195,17493.0,17492.0,0.06293476]
[1673382213274,0.89984105,17493.0,17492.0,0.06293476]
[1673382213530,0.64825417,17493.0,17492.0,0.06293476]
[1673382213808,0.6128,17493.0,17492.0,0.06293476]
[1673382214041,0.6088,17493.0,17492.0,0.05293476]
[1673382214316,0.6128,17493.0,17492.0,0.06293476]
[1673382214556,0.64407445,17493.0,17492.0,0.06293476]
[1673382215044,0.85963735,17493.0,17492.0,0.06293476]
[1673382215537,0.6472985,17493.0,17492.0,0.06293476]
[1673382216881,0.6128,17493.0,17492.0,0.06293476]
[1673382217139,0.04103919,17493.0,17492.0,0.30061265]
[1673382217391,0.04103919,17493.0,17492.0,0.06293476]
[1673382217686,0.24103919,17493.0,17492.0,0.06293476]
[1673382217945,0.52771592,17493.0,17492.0,0.05293476]
[1673382218203,0.77334266,17493.0,17492.0,0.05293476]
[1673382218452,1.01763472,17493.0,17492.0,0.06193476]
[1673382219208,0.2,17492.0,17488.0,0.00015]
[1673382219488,0.2188,17489.0,17488.0,0.00015]
[1673382219719,2.03108194,17489.0,17488.0,6.042e-05]
[1673382219963,1.86150933,17489.0,17488.0,6.042e-05]
[1673382220216,1.452974,17489.0,17488.0,0.51388365]
[1673382220472,1.752974,17489.0,17488.0,0.51382323]
[1673382220726,1.752974,17489.0,17485.0,0.43621]
[1673382220978,1.764974,17489.0,17488.0,0.01]
[1673382221231,1.752974,17489.0,17487.0,0.68807563]
[1673382221504,0.3,17488.0,17487.0,0.68807563]
[1673382222000,0.5,17488.0,17487.0,0.68807563]
[1673382222243,0.3,17488.0,17485.0,0.2]
[1673382222486,0.571853,17487.0,17485.0,0.77290383]
[1673382223234,0.571853,17487.0,17486.0,0.58923107]
[1673382224256,0.584853,17487.0,17486.0,0.58923107]
[1673382225004,1.02617709,17487.0,17485.0,0.68398058]
[1673382225302,0.584853,17487.0,17486.0,0.71232574]
[1673382225776,0.584853,17487.0,17486.0,0.51232574]
[1673382226020,0.571853,17487.0,17486.0,0.51232574]
[1673382227087,0.584853,17487.0,17486.0,0.51232574]
[1673382227309,0.571853,17487.0,17486.0,0.51232574]
[1673382227564,0.584853,17487.0,17486.0,0.51232574]
[1673382228892,0.884853,17487.0,17485.0,0.68857822]
[1673382229928,0.871853,17487.0,17485.0,0.68857822]
[1673382230178,0.884853,17487.0,17485.0,0.68857822]
[1673382230443,0.884853,17487.0,17485.0,0.88857822]
[1673382230680,0.584853,17487.0,17485.0,0.88857822]
[1673382230974,1.156706,17487.0,17485.0,0.68857822]
[1673382231195,1.1922062,17487.0,17485.0,0.68857822]
[1673382231757,0.02858441,17486.0,17484.0,1.2391]
[1673382231982,1.143836,17485.0,17484.0,1.89805231]
[1673382232248,1.143836,17485.0,17484.0,0.65895231]
[1673382233048,0.81449257,17485.0,17484.0,0.65895231]
[1673382233272,0.81449257,17485.0,17484.0,0.77403016]
[1673382233534,1.15083842,17485.0,17483.0,1.2227978]
[1673382233784,1.15083842,17485.0,17484.0,0.104]
[1673382233785,1.15183842,17485.0,17484.0,0.104]
[1673382236295,1.35183842,17485.0,17484.0,0.104]
[1673382236552,1.63234246,17485.0,17484.0,0.104]
[1673382236803,1.81339661,17485.0,17484.0,0.104]
[1673382237054,1.84233489,17485.0,17484.0,0.104]
[1673382237565,1.84133489,17485.0,17483.0,0.38985599]
[1673382237847,0.5188,17484.0,17483.0,0.38985599]
[1673382238171,1.862702,17484.0,17483.0,0.38985599]
[1673382238360,1.662702,17484.0,17483.0,0.38985599]
[1673382238864,1.253302,17484.0,17483.0,0.38985599]
[1673382239119,1.143902,17484.0,17483.0,1.3348313]
[1673382239375,1.143902,17484.0,17483.0,0.38985599]
[1673382239880,0.571951,17484.0,17483.0,0.38985599]
[1673382240133,0.589951,17484.0,17483.0,0.39585599]
[1673382240383,0.589951,17484.0,17483.0,0.90299363]
[1673382241155,1.161902,17484.0,17483.0,0.90299363]
[1673382241702,1.161902,17484.0,17483.0,0.39585599]
[1673382242515,1.4952816,17484.0,17483.0,0.39585599]
[1673382242753,1.80802502,17484.0,17483.0,0.39585599]
[1673382243014,1.4952816,17484.0,17483.0,0.39585599]
[1673382244775,1.9137816,17484.0,17483.0,0.39585599]
[1673382245593,1.989702,17484.0,17483.0,0.39585599]
[1673382245861,2.59366018,17484.0,17483.0,0.39585599]
[1673382246110,2.97159167,17484.0,17483.0,0.39585599]
[1673382247130,3.14199488,17484.0,17483.0,0.39585599]
[1673382247407,2.42740289,17484.0,17483.0,0.39585599]
[1673382247685,1.97244502,17484.0,17483.0,0.39585599]
[1673382247952,1.91267562,17484.0,17483.0,0.39585599]
[1673382249031,1.880302,17484.0,17483.0,0.39585599]
[1673382249544,2.48385882,17484.0,17483.0,0.39585599]
[1673382249901,2.87643523,17484.0,17483.0,0.39585599]
[1673382249902,3.04759333,17484.0,17483.0,0.39585599]
[1673382250380,2.5038588,17484.0,17483.0,0.39585599]
[1673382250548,2.53566888,17484.0,17483.0,0.39585599]
[1673382250799,2.3327007,17484.0,17483.0,0.39585599]
[1673382251072,2.5038588,17484.0,17483.0,0.39585599]
[1673382251280,2.3327007,17484.0,17483.0,0.39585599]
[1673382251765,2.3327007,17484.0,17483.0,0.10079099]
[1673382251766,3.04730029,17484.0,17483.0,0.10079099]
[1673382252027,3.58376032,17484.0,17481.0,0.00368424]
[1673382252273,0.2182,17482.0,17481.0,0.00368424]
[1673382252508,3.34800279,17482.0,17481.0,0.00368424]
[1673382252989,3.34800279,17482.0,17481.0,0.00968424]
[1673382253239,3.45670279,17482.0,17481.0,0.00368424]
[1673382253483,3.32817435,17482.0,17481.0,0.00368424]
[1673382253957,2.76119842,17482.0,17481.0,0.24736213]
[1673382254210,2.54299842,17482.0,17481.0,0.00968424]
[1673382254948,2.65239842,17482.0,17481.0,0.00968424]
[1673382255454,2.95239842,17482.0,17481.0,0.00968424]
[1673382255694,3.15823826,17482.0,17481.0,0.00968424]
[1673382259750,3.17823826,17482.0,17481.0,0.00968424]
[1673382260254,3.14900384,17482.0,17481.0,0.00968424]
[1673382260769,3.1814242,17482.0,17481.0,0.00968424]
[1673382261772,3.14900384,17482.0,17481.0,0.00968424]
[1673382262065,3.69026874,17482.0,17481.0,0.00968424]
[1673382262321,3.14900384,17482.0,17481.0,0.00968424]
[1673382262581,3.6904188,17482.0,17481.0,0.00968424]
[1673382262832,4.07898951,17482.0,17481.0,0.00968424]
[1673382263088,4.62174569,17482.0,17481.0,2.4e-07]
[1673382263346,0.2,17481.0,17480.0,0.00368424]
[1673382263606,2.14354332,17481.0,17479.0,6.1e-07]
[1673382263864,1.53033144,17480.0,17479.0,6.1e-07]
[1673382264120,2.48389544,17480.0,17479.0,6.1e-07]
[1673382264624,2.31314768,17480.0,17479.0,6.1e-07]
[1673382264878,2.54368779,17480.0,17479.0,6.1e-07]
[1673382265136,3.29886679,17480.0,17479.0,6.1e-07]
[1673382265388,3.04274274,17480.0,17479.0,6.1e-07]
[1673382265907,2.54368779,17480.0,17479.0,6.1e-07]
[1673382266161,2.36454003,17480.0,17479.0,6.1e-07]
[1673382266418,2.40348121,17480.0,17479.0,6.1e-07]
[1673382266676,2.30248121,17480.0,17479.0,6.1e-07]
[1673382266947,2.60722897,17480.0,17479.0,6.1e-07]
[1673382267234,3.36876209,17480.0,17479.0,6.1e-07]
[1673382267495,3.11263804,17480.0,17479.0,6.1e-07]
[1673382267770,2.60722897,17480.0,17479.0,6.1e-07]
[1673382268036,1.89579753,17480.0,17479.0,6.1e-07]
[1673382268295,1.53600518,17480.0,17479.0,6.1e-07]
[1673382269346,1.70675294,17480.0,17479.0,6.1e-07]
[1673382269598,2.20085228,17480.0,17479.0,6.1e-07]
[1673382269849,2.37160004,17480.0,17479.0,6.1e-07]
[1673382270099,2.62772409,17480.0,17479.0,6.1e-07]
[1673382271095,2.79847229,17480.0,17479.0,6.1e-07]
[1673382271607,2.85826135,17480.0,17479.0,6.1e-07]
[1673382272369,2.49341425,17480.0,17479.0,6.1e-07]
[1673382273104,2.66482937,17480.0,17479.0,6.1e-07]
[1673382274433,2.86365174,17480.0,17479.0,6.1e-07]
[1673382274680,2.66527444,17480.0,17479.0,6.1e-07]
[1673382274922,2.32333341,17480.0,17479.0,6.1e-07]
[1673382275172,2.69007655,17480.0,17479.0,6.1e-07]
[1673382275434,2.27546922,17480.0,17479.0,6.1e-07]
[1673382276204,2.10444011,17480.0,17479.0,6.1e-07]
[1673382276965,2.27546922,17480.0,17479.0,6.1e-07]
[1673382277218,2.70300839,17480.0,17479.0,6.1e-07]
[1673382277473,2.69111986,17480.0,17479.0,6.1e-07]
[1673382277720,2.86212872,17480.0,17479.0,6.1e-07]
[1673382277977,2.52008405,17480.0,17479.0,6.1e-07]
[1673382278749,1.98010372,17480.0,17479.0,6.1e-07]
[1673382279001,2.23670475,17480.0,17479.0,6.1e-07]
[1673382279305,1.87691569,17480.0,17479.0,6.1e-07]
[1673382279517,1.70589131,17480.0,17479.0,6.1e-07]
[1673382280026,1.57189131,17480.0,17479.0,6.1e-07]
[1673382280270,1.68089131,17480.0,17479.0,0.00200061]
[1673382280537,1.57189131,17480.0,17479.0,6.1e-07]
[1673382280791,1.87989131,17480.0,17479.0,0.01400061]
[1673382282849,2.41320136,17480.0,17479.0,0.01400061]
[1673382283366,2.5841395,17480.0,17479.0,0.01400061]
[1673382283887,2.84098122,17480.0,17479.0,0.01400061]
[1673382284151,2.08746777,17480.0,17479.0,0.01410975]
[1673382284445,2.08746777,17480.0,17479.0,0.01400061]
[1673382284683,1.61653777,17480.0,17479.0,0.01400061]
[1673382285416,2.25816522,17480.0,17479.0,0.01400061]
[1673382285696,2.54118664,17480.0,17479.0,0.01400061]
[1673382285948,2.19903598,17480.0,17479.0,0.01400061]
[1673382286209,1.94572348,17480.0,17479.0,0.01388455]
[1673382286464,2.14572348,17480.0,17479.0,0.01388455]
[1673382287538,2.30192731,17480.0,17479.0,0.01388455]
[1673382288781,1.79027292,17480.0,17479.0,0.01388455]
[1673382290612,1.85006036,17480.0,17479.0,0.01388455]
[1673382290881,2.22704804,17480.0,17479.0,0.01388455]
[1673382291121,2.80273549,17480.0,17479.0,0.01388455]
[1673382294222,3.34326347,17480.0,17479.0,0.01388455]
[1673382294484,3.45266347,17480.0,17479.0,0.01388455]
[1673382294745,2.87697602,17480.0,17479.0,0.01388455]
[1673382295000,0.2,17479.0,17478.0,0.00374124]
[1673382295255,2.71031848,17479.0,17478.0,0.00374124]
[1673382295518,2.74924246,17479.0,17478.0,2.4e-07]
[1673382295774,2.71031848,17479.0,17477.0,0.00430495]
[1673382296024,0.79633223,17478.0,17477.0,0.00430495]
[1673382296271,2.78066441,17478.0,17477.0,0.00430495]
[1673382296526,3.42392361,17478.0,17477.0,0.00430495]
[1673382297282,2.88388543,17478.0,17477.0,0.00430495]
[1673382297538,2.91182036,17478.0,17477.0,0.00430495]
[1673382297789,2.88388543,17478.0,17477.0,0.00430495]
[1673382298034,3.4238688,17478.0,17477.0,0.00430495]
[1673382298250,3.01888543,17478.0,17477.0,0.00430495]
[1673382298501,3.04788414,17478.0,17477.0,0.00430495]
[1673382298756,3.01888543,17478.0,17477.0,0.00430495]
[1673382299514,3.55882854,17478.0,17477.0,0.00430495]
[1673382300796,2.98049631,17478.0,17477.0,0.00430495]
[1673382303714,2.98049631,17478.0,17476.0,0.00451096]
[1673382303715,0.22820246,17477.0,17476.0,0.00451096]
[1673382303965,1.18733345,17477.0,17476.0,0.00451096]
[1673382304232,2.33169345,17477.0,17476.0,0.00451096]
[1673382305035,2.29280474,17477.0,17476.0,0.00451096]
[1673382305297,2.40880474,17477.0,17476.0,0.00451096]
[1673382305562,2.80085367,17477.0,17475.0,0.0017632]
[1673382305826,2.80085367,17477.0,17474.0,0.00451096]
[1673382305827,1.63528662,17476.0,17474.0,0.00451096]
[1673382306094,3.51379899,17475.0,17474.0,0.00451096]
[1673382306389,4.32870755,17475.0,17474.0,0.00451096]
[1673382306673,3.75069077,17475.0,17474.0,0.00451096]
[1673382307189,2.588984,17475.0,17474.0,0.00451096]
[1673382307450,2.83570035,17475.0,17474.0,0.00451096]
[1673382307712,2.53024897,17475.0,17474.0,0.00551096]
[1673382307989,1.95800297,17475.0,17474.0,0.00551096]
[1673382308253,1.75800297,17475.0,17474.0,0.00551096]
[1673382308520,1.75800297,17475.0,17474.0,0.00451096]
[1673382308521,2.52009408,17475.0,17474.0,0.00451096]
[1673382308788,2.63609623,17475.0,17474.0,0.00451096]
[1673382309088,1.72159403,17475.0,17474.0,0.00451096]
[1673382309557,2.02159403,17475.0,17474.0,0.00451096]
[1673382309883,1.90559403,17475.0,17474.0,0.00451096]
[1673382310142,1.94859403,17475.0,17474.0,0.00451096]
[1673382310593,2.29082485,17475.0,17474.0,0.00451096]
[1673382310868,1.94859403,17475.0,17474.0,0.00451096]
[1673382311918,1.99079131,17475.0,17474.0,0.00451096]
[1673382312443,2.29079131,17475.0,17474.0,0.00451096]
[1673382312698,1.94859403,17475.0,17474.0,0.00451096]
[1673382313501,2.29076818,17475.0,17474.0,0.00451096]
[1673382314290,1.94859403,17475.0,17474.0,0.00451096]
[1673382314568,2.29076739,17475.0,17474.0,0.00451096]
[1673382315082,1.99076739,17475.0,17474.0,0.00451096]
[1673382315328,2.11953607,17475.0,17474.0,0.00451096]
[1673382315804,2.29076739,17475.0,17474.0,0.00451096]
[1673382318172,1.94859403,17475.0,17474.0,0.00451096]
[1673382318390,2.29074477,17475.0,17474.0,0.00451096]
[1673382318642,2.54736792,17475.0,17474.0,0.00451096]
[1673382318897,1.78626589,17475.0,17474.0,0.77144635]
[1673382319165,1.35856801,17475.0,17474.0,0.77144635]
[1673382319431,1.61519116,17475.0,17474.0,0.00451096]
[1673382319699,0.78632201,17475.0,17474.0,1.04439058]
[1673382319960,0.043,17475.0,17474.0,1.49260069]
[1673382320998,1.03015406,17476.0,17474.0,1.49260069]
[1673382321254,0.18607601,17475.0,17474.0,0.92411269]
[1673382321508,0.18607601,17475.0,17474.0,1.50130069]
[1673382321770,0.18607601,17475.0,17474.0,1.39190069]
[1673382322077,0.75832201,17475.0,17474.0,1.39190069]
[1673382322344,0.572246,17475.0,17474.0,1.38390069]
[1673382322596,0.74332201,17475.0,17474.0,1.03351269]
[1673382322848,0.74332201,17475.0,17474.0,1.38390069]
[1673382323106,0.75832201,17475.0,17474.0,1.03351269]
[1673382323373,2.00907898,17475.0,17474.0,0.01251096]
[1673382323640,2.51041048,17475.0,17474.0,0.01251096]
[1673382323891,2.2572306,17475.0,17474.0,0.01251096]
[1673382324649,1.91507986,17475.0,17474.0,0.01251096]
[1673382325430,1.4872428,17475.0,17474.0,0.01251096]
[1673382326228,2.20490144,17475.0,17474.0,0.01251096]
[1673382326484,2.52788152,17475.0,17474.0,0.01251096]
[1673382326738,2.01443014,17475.0,17474.0,0.01251096]
[1673382327532,2.65225048,17475.0,17474.0,0.01251096]
[1673382327784,2.68165959,17475.0,17474.0,0.01251096]
[1673382328029,2.10364281,17475.0,17474.0,0.01251096]
[1673382328553,2.08864281,17475.0,17474.0,0.00451096]
[1673382328761,2.09564281,17475.0,17474.0,0.01051096]
[1673382329028,2.2548589,17475.0,17474.0,0.01051096]
[1673382330052,2.25493789,17475.0,17474.0,0.01051096]
[1673382330283,1.74070467,17475.0,17474.0,0.01051096]
[1673382330523,1.74070467,17475.0,17474.0,0.01042651]
[1673382331014,2.10702482,17475.0,17474.0,0.01042651]
[1673382331258,1.74070467,17475.0,17474.0,0.01042651]
[1673382331517,1.68090111,17475.0,17474.0,0.01042651]
[1673382333978,2.25891789,17475.0,17474.0,0.01042651]
[1673382334223,2.22950878,17475.0,17474.0,0.01042651]
[1673382335238,2.26288922,17475.0,17474.0,0.01042651]
[1673382335740,1.68487244,17475.0,17474.0,0.01042651]
[1673382335993,2.04560936,17475.0,17474.0,0.01042651]
[1673382337008,1.68487244,17475.0,17474.0,0.01042651]
[1673382337263,1.48487244,17475.0,17474.0,0.01042651]
[1673382337521,1.99926922,17475.0,17474.0,0.01042651]
[1673382338509,1.48487244,17475.0,17474.0,0.01042651]
[1673382339020,1.48487244,17475.0,17474.0,0.861774]
[1673382339021,1.66589879,17475.0,17474.0,0.861774]
[1673382339275,1.00788371,17475.0,17474.0,0.62409611]
[1673382339810,0.43563771,17475.0,17474.0,0.62409611]
[1673382340104,0.77853887,17475.0,17474.0,0.62409611]
[1673382340609,0.77853887,17475.0,17474.0,0.73289611]
[1673382341227,0.60705101,17475.0,17474.0,0.73289611]
[1673382341630,0.77848002,17475.0,17474.0,1.09128411]
[1673382341871,0.43557886,17475.0,17474.0,1.09128411]
[1673382342408,0.77848002,17475.0,17474.0,1.09128411]
[1673382342655,0.60705101,17475.0,17474.0,1.09128411]
[1673382342891,0.60705101,17475.0,17474.0,0.73289611]
[1673382343144,1.17929701,17475.0,17474.0,0.73289611]
[1673382343391,1.75154301,17475.0,17474.0,0.73289611]
[1673382343634,1.17929701,17475.0,17474.0,0.73289611]
[1673382343884,0.43554288,17475.0,17474.0,0.73289611]
[1673382344138,0.77844404,17475.0,17474.0,0.73289611]
[1673382344416,0.60705101,17475.0,17474.0,0.73289611]
[1673382344663,0.77843033,17475.0,17474.0,0.73289611]
[1673382344921,0.60705101,17475.0,17474.0,0.73289611]
[1673382345391,0.60705101,17475.0,17474.0,0.7331349]
[1673382345653,0.60696852,17475.0,17474.0,0.7331349]
[1673382345895,0.60696852,17475.0,17474.0,0.6237349]
[1673382346147,0.60696852,17475.0,17474.0,0.62349611]
[1673382346411,1.60785223,17475.0,17474.0,0.62349611]
[1673382346649,1.17921452,17475.0,17474.0,0.62349611]
[1673382346901,1.35070238,17475.0,17474.0,0.62349611]
[1673382347157,1.35070238,17475.0,17474.0,0.11922651]
[1673382347398,1.92285003,17475.0,17474.0,0.11922651]
[1673382347908,1.58004722,17475.0,17474.0,0.01042651]
[1673382348162,1.6814071,17475.0,17474.0,0.01042651]
[1673382349164,2.19581389,17475.0,17474.0,0.01042651]
[1673382350150,1.99581389,17475.0,17474.0,0.01042651]
[1673382350644,2.19581389,17475.0,17474.0,0.01042651]
[1673382350889,1.99581389,17475.0,17474.0,0.01042651]
[1673382351638,1.4814071,17475.0,17474.0,0.01042651]
[1673382352911,1.6814071,17475.0,17474.0,0.01042651]
[1673382353158,2.19581389,17475.0,17474.0,0.01042651]
[1673382354158,1.6814071,17475.0,17474.0,0.01042651]
[1673382354668,1.4814071,17475.0,17474.0,0.01042651]
[1673382355156,1.6814071,17475.0,17474.0,0.01042651]
[1673382355665,2.19581389,17475.0,17474.0,0.01042651]
[1673382356164,2.54984078,17475.0,17474.0,0.01042651]
[1673382357224,2.19581389,17475.0,17474.0,0.01042651]
[1673382360510,1.99581389,17475.0,17474.0,0.01042651]
[1673382362094,2.19581389,17475.0,17474.0,0.01042651]
[1673382362582,1.6814071,17475.0,17474.0,0.01042651]
[1673382363886,1.4814071,17475.0,17474.0,0.01042651]
[1673382364126,1.99576381,17475.0,17474.0,0.01042651]
[1673382364364,2.19576381,17475.0,17474.0,0.01042651]
[1673382364610,1.99576381,17475.0,17474.0,0.01042651]
[1673382364859,2.19576381,17475.0,17474.0,0.01042651]
[1673382365351,1.99576381,17475.0,17474.0,0.01042651]
[1673382365606,1.15140951,17475.0,17474.0,0.14884651]
[1673382365857,1.57999416,17475.0,17474.0,0.25824651]
[1673382366455,1.57999416,17475.0,17474.0,0.11982651]
[1673382366660,1.00774816,17475.0,17474.0,0.65327583]
[1673382366906,1.35059671,17475.0,17474.0,0.65327583]
[1673382367409,0.60688831,17475.0,17474.0,0.65327583]
[1673382367688,0.43545055,17475.0,17474.0,0.77037583]
[1673382368200,0.43545055,17475.0,17474.0,1.12876383]
[1673382368700,0.43545055,17475.0,17474.0,1.32876383]
[1673382368962,0.19141079,17476.0,17474.0,2.171706]
[1673382369241,0.02,17476.0,17475.0,1.3775216]
[1673382369464,0.02,17476.0,17475.0,1.2681216]
[1673382369716,0.02,17476.0,17475.0,1.86476971]
[1673382369967,0.02,17476.0,17475.0,1.4681216]
[1673382370223,0.02,17476.0,17475.0,2.76829501]
[1673382370471,0.02,17476.0,17475.0,2.1497676]
[1673382370730,0.02,17476.0,17475.0,2.80308007]
[1673382370985,0.033,17476.0,17475.0,2.84879253]
[1673382371235,0.02,17476.0,17475.0,2.80879253]
[1673382371558,0.033,17476.0,17475.0,2.84879253]
[1673382371761,0.033,17476.0,17475.0,2.1897676]